[Event "Klatovy Open-B 2024"]
[Site "Klatovy"]
[Date "2024.06.29"]
[Round "1.1"]
[White "Tykalova, Barbora"]
[Black "Kaderabek, Jiri"]
[Result "0-1"]
[ECO "B07"]
[WhiteElo "1594"]
[BlackElo "1984"]
[Annotator "NA RC"]
[PlyCount "50"]
[EventDate "2024.06.21"]
[EventType "swiss"]
[EventCountry "CZE"]
[SourceTitle "playchess.com"]
[Source "ChessBase"]
[SourceQuality "1"]
[TimeControl "40/7200:0"]

1. e4 {[%emt 0:00:00]} d6 {[%emt 0:04:34]} 2. d4 {[%emt 0:00:00]} Nf6 {[%emt 0:00:00]} 3. f3 {[%emt 0:02:59]} c5 {[%emt 0:02:33]} 4. d5 {[%emt 0:01:18]} e6 {[%emt 0:02:12]} 5. dxe6 {[%emt 0:00:05]} Bxe6 {[%emt 0:00:40]} 6. Nc3 {[%emt 0:00:10]} Be7 {[%emt 0:02:48]} 7. Bf4 {[%emt 0:00:00]} O-O {[%emt 0:04:11]} 8. Nb5 {[%emt 0:01:08]} Ne8 {[%emt 0:01:15]} 9. Qd2 {[%emt 0:00:26]} a6 {[%emt 0:00:10]} 10. Nc3 {[%emt 0:00:00]} Nc6 {[%emt 0:03:40]} 11. Bd3 {[%emt 0:00:44]} b5 {[%emt 0:00:31]} 12. Nh3 {[%emt 0:03:23]} Bxh3 {[%emt 0:03:58]} 13. gxh3 {[%emt 0:00:00]} Bh4+ {[%emt 0:00:00]} 14. Kd1 {[%emt 0:01:10]} Nd4 {[%emt 0:04:18]} 15. Qe3 {[%emt 0:01:38]} Nc7 {[%emt 0:00:57]} 16. Rg1 {[%emt 0:01:02]} Kh8 {[%emt 0:01:59]} 17. e5 {[%emt 0:00:36]} Re8 {[%emt 0:11:09]} 18. Bg5 {[%emt 0:08:12]} Bxg5 {[%emt 0:01:06]} 19. Rxg5 {[%emt 0:00:00]} Rxe5 {[%emt 0:00:28]} 20. Rxe5 {[%emt 0:02:36]} dxe5 {[%emt 0:00:00]} 21. Qxe5 {[%emt 0:01:40]} c4 {[%emt 0:00:35]} 22. Nd5 {[%emt 0:05:10]} cxd3 {[%emt 0:03:46]} 23. Nxc7 {[%emt 0:00:24]} dxc2+ {[%emt 0:00:12]} 24. Kc1 {[%emt 0:00:00]} Nb3+ {[%emt 0:00:21]} 25. Kxc2 {[%emt 0:00:00]} Nxa1+ {[%emt 0:00:00]} 0-1

[Event "Klatovy Open-B 2024"]
[Site "Klatovy"]
[Date "2024.06.29"]
[Round "1.2"]
[White "Rezac, Jindrich"]
[Black "Krivka, Lukas"]
[Result "1/2-1/2"]
[ECO "D45"]
[WhiteElo "1875"]
[BlackElo "1587"]
[Annotator "NA RC"]
[PlyCount "76"]
[EventDate "2024.06.21"]
[EventType "swiss"]
[EventCountry "CZE"]
[SourceTitle "playchess.com"]
[Source "ChessBase"]
[SourceQuality "1"]
[TimeControl "40/7200:0"]

1. c4 {[%emt 0:00:00]} e6 {[%emt 0:00:00]} 2. Nc3 {[%emt 0:00:00]} Nf6 {[%emt 0:00:00]} 3. d4 {[%emt 0:00:00]} d5 {[%emt 0:00:00]} 4. e3 {[%emt 0:00:00]} c6 {[%emt 0:00:00]} 5. Nf3 {[%emt 0:00:00]} Be7 {[%emt 0:00:00]} 6. Bd3 {[%emt 0:00:00]} O-O {[%emt 0:00:00]} 7. O-O {[%emt 0:00:00]} dxc4 {[%emt 0:01:27]} 8. Bxc4 {[%emt 0:01:44]} b5 {[%emt 0:00:00]} 9. Bb3 {[%emt 0:03:51]} Bb7 {[%emt 0:01:09]} 10. Bc2 {[%emt 0:02:24]} Nbd7 {[%emt 0:02:07]} 11. Qe2 {[%emt 0:08:20]} a6 {[%emt 0:03:29]} 12. b3 {[%emt 0:08:11]} Nd5 {[%emt 0:04:43]} 13. Bb2 {[%emt 0:05:38]} Qa5 {[%emt 0:09:00]} 14. a3 {[%emt 0:12:47]} N7f6 {[%emt 0:10:19]} 15. Qd3 {[%emt 0:06:41]} Qc7 {[%emt 0:06:00]} 16. Ng5 {[%emt 0:08:23]} h6 {[%emt 0:03:11]} 17. Nge4 {[%emt 0:11:45]} Ng4 {[%emt 0:07:41]} 18. Ng3 {[%emt 0:01:37]} Ngf6 {[%emt 0:00:19]} 19. h3 {[%emt 0:02:59]} Rac8 {[%emt 0:04:02]} 20. Nge4 {[%emt 0:03:58]} g6 {[%emt 0:05:39]} 21. Rac1 {[%emt 0:02:06]} Rfd8 {[%emt 0:02:41]} 22. Qe2 {[%emt 0:01:39]} Nxc3 {[%emt 0:03:38]} 23. Nxc3 {[%emt 0:06:24]} Qd7 {[%emt 0:02:30]} 24. Rfd1 {[%emt 0:01:25]} Nd5 {[%emt 0:01:00]} 25. Ne4 {[%emt 0:04:51]} Nf6 {[%emt 0:00:38]} 26. Nc5 {[%emt 0:01:21]} Qc7 {[%emt 0:00:54]} 27. Qf3 {[%emt 0:01:21]} Nd7 {[%emt 0:00:20]} 28. Bxg6 {[%emt 0:04:35]} fxg6 {[%emt 0:02:14]} 29. Nxe6 {[%emt 0:02:19]} Qd6 {[%emt 0:01:18]} 30. Qe4 {[%emt 0:04:53]} Nf8 {[%emt 0:00:34]} 31. Nxd8 {[%emt 0:01:06]} Rxd8 {[%emt 0:00:41]} 32. Rc2 {[%emt 0:03:58]} Qe6 {[%emt 0:01:19]} 33. Qxe6+ {[%emt 0:00:41]} Nxe6 {[%emt 0:00:00]} 34. e4 {[%emt 0:00:48]} Bf6 {[%emt 0:01:33]} 35. Rcd2 {[%emt 0:00:08]} Bg5 {[%emt 0:08:45]} 36. Rc2 {[%emt 0:00:35]} Bf6 {[%emt 0:00:03]} 37. Rcd2 {[%emt 0:00:29]} Bg5 {[%emt 0:00:00]} 38. Rc2 {[%emt 0:00:48]} Bf6 {[%emt 0:00:00]} 1/2-1/2

[Event "Klatovy Open-B 2024"]
[Site "Klatovy"]
[Date "2024.06.29"]
[Round "1.3"]
[White "Kolman, Pavel Petr"]
[Black "Lener, Jaroslav"]
[Result "1-0"]
[ECO "B23"]
[WhiteElo "1582"]
[BlackElo "1870"]
[Annotator "NA RC"]
[PlyCount "59"]
[EventDate "2024.06.21"]
[EventType "swiss"]
[EventCountry "CZE"]
[SourceTitle "playchess.com"]
[Source "ChessBase"]
[SourceQuality "1"]
[TimeControl "40/7200:0"]

1. e4 {[%emt 0:00:00]} c5 {[%emt 0:00:00]} 2. Nc3 {[%emt 0:00:00]} Nc6 {[%emt 0:00:00]} 3. Bb5 {[%emt 0:00:00]} d6 {[%emt 0:00:31]} 4. Bxc6+ {[%emt 0:00:09]} bxc6 {[%emt 0:00:00]} 5. d3 {[%emt 0:00:02]} g6 {[%emt 0:01:10]} 6. f4 {[%emt 0:00:34]} Bg7 {[%emt 0:00:10]} 7. Nf3 {[%emt 0:00:12]} Bg4 {[%emt 0:01:29]} 8. O-O {[%emt 0:02:03]} Nf6 {[%emt 0:04:12]} 9. e5 {[%emt 0:02:40]} Nd5 {[%emt 0:00:22]} 10. exd6 {[%emt 0:01:34]} Nxc3 {[%emt 0:06:00]} 11. bxc3 {[%emt 0:00:00]} Bxc3 {[%emt 0:11:06]} 12. dxe7 {[%emt 0:01:17]} Qb6 {[%emt 0:01:03]} 13. Be3 {[%emt 0:05:32]} Kxe7 {[%emt 0:31:12]} 14. Rb1 {[%emt 0:02:22]} Qa5 {[%emt 0:03:26]} 15. Rb7+ {[%emt 0:02:13]} Kf8 {[%emt 0:02:49]} 16. Qb1 {[%emt 0:02:53]} Be6 {[%emt 0:11:44]} 17. a4 {[%emt 0:04:42]} Kg7 {[%emt 0:00:42]} 18. Ng5 {[%emt 0:04:13]} Bd5 {[%emt 0:01:40]} 19. f5 {[%emt 0:02:36]} Rhf8 {[%emt 0:09:25]} 20. Ne6+ {[%emt 0:05:47]} Bxe6 {[%emt 0:01:21]} 21. fxe6 {[%emt 0:00:00]} Bf6 {[%emt 0:04:39]} 22. Qc1 {[%emt 0:09:20]} Qc3 {[%emt 0:13:21]} 23. Bh6+ {[%emt 0:01:14]} Kg8 {[%emt 0:00:00]} 24. Bxf8 {[%emt 0:00:00]} Qd4+ {[%emt 0:00:00]} 25. Kh1 {[%emt 0:00:00]} Rxf8 {[%emt 0:00:00]} 26. Rxa7 {[%emt 0:06:17]} Kg7 {[%emt 0:04:29]} 27. Qf4 {[%emt 0:01:12]} Qd8 {[%emt 0:01:59]} 28. Qxf6+ {[%emt 0:01:40]} Qxf6 {[%emt 0:00:00]} 29. Rxf6 {[%emt 0:00:00]} Kxf6 {[%emt 0:00:00]} 30. Rxf7+ {[%emt 0:00:00]} 1-0

[Event "Klatovy Open-B 2024"]
[Site "Klatovy"]
[Date "2024.06.29"]
[Round "1.4"]
[White "Koper, Stefan"]
[Black "Velkoborsky, Tadeas"]
[Result "1/2-1/2"]
[ECO "D55"]
[WhiteElo "1845"]
[BlackElo "1578"]
[Annotator "NA RC"]
[PlyCount "143"]
[EventDate "2024.06.21"]
[EventType "swiss"]
[EventCountry "CZE"]
[SourceTitle "playchess.com"]
[Source "ChessBase"]
[SourceQuality "1"]
[TimeControl "40/7200:0"]

1. d4 {[%emt 0:06:28]} d5 {[%emt 0:00:00]} 2. c4 {[%emt 0:00:02]} e6 {[%emt 0:00:00]} 3. Nc3 {[%emt 0:00:00]} Nf6 {[%emt 0:00:00]} 4. Nf3 {[%emt 0:00:00]} Be7 {[%emt 0:00:00]} 5. Bg5 {[%emt 0:00:00]} O-O {[%emt 0:00:00]} 6. e3 {[%emt 0:00:00]} Nbd7 {[%emt 0:00:00]} 7. cxd5 {[%emt 0:00:00]} exd5 {[%emt 0:00:18]} 8. Bd3 {[%emt 0:00:00]} c5 {[%emt 0:04:19]} 9. O-O {[%emt 0:00:00]} b6 {[%emt 0:08:04]} 10. a4 {[%emt 0:00:00]} Bb7 {[%emt 0:00:33]} 11. Rc1 {[%emt 0:00:00]} h6 {[%emt 0:01:07]} 12. Bf4 {[%emt 0:00:00]} Nh5 {[%emt 0:01:22]} 13. Be5 {[%emt 0:00:00]} Nxe5 {[%emt 0:04:20]} 14. Nxe5 {[%emt 0:00:00]} cxd4 {[%emt 0:01:55]} 15. exd4 {[%emt 0:00:00]} Nf4 {[%emt 0:00:28]} 16. Bb1 {[%emt 0:00:00]} Bg5 {[%emt 0:01:31]} 17. Qc2 {[%emt 0:00:40]} Ng6 {[%emt 0:08:38]} 18. Nxg6 {[%emt 0:00:00]} fxg6 {[%emt 0:00:00]} 19. Rcd1 {[%emt 0:02:36]} Rf6 {[%emt 0:02:00]} 20. Ba2 {[%emt 0:00:44]} Rc8 {[%emt 0:00:34]} 21. Qb3 {[%emt 0:00:02]} Kh7 {[%emt 0:03:58]} 22. g3 {[%emt 0:01:27]} Rf3 {[%emt 0:02:19]} 23. Qb5 {[%emt 0:01:21]} a6 {[%emt 0:10:16]} 24. Qe2 {[%emt 0:00:00]} Qf6 {[%emt 0:01:43]} 25. Bxd5 {[%emt 0:01:01]} Bxd5 {[%emt 0:00:18]} 26. Nxd5 {[%emt 0:00:00]} Qf5 {[%emt 0:00:53]} 27. Nc3 {[%emt 0:03:26]} a5 {[%emt 0:05:14]} 28. Qe4 {[%emt 0:04:15]} Qf7 {[%emt 0:03:01]} 29. d5 {[%emt 0:00:13]} Re8 {[%emt 0:00:43]} 30. Qc4 {[%emt 0:00:16]} Rf8 {[%emt 0:00:06]} 31. Ne4 {[%emt 0:02:51]} Be7 {[%emt 0:01:05]} 32. Qd4 {[%emt 0:00:03]} Rd8 {[%emt 0:04:59]} 33. Kg2 {[%emt 0:01:21]} Rb3 {[%emt 0:00:22]} 34. d6 {[%emt 0:00:00]} Qf3+ {[%emt 0:04:45]} 35. Kg1 {[%emt 0:00:00]} Rb4 {[%emt 0:00:54]} 36. Qe3 {[%emt 0:03:36]} Qxe3 {[%emt 0:03:12]} 37. fxe3 {[%emt 0:00:00]} Rxe4 {[%emt 0:00:00]} 38. dxe7 {[%emt 0:00:00]} Rxd1 {[%emt 0:00:00]} 39. Rxd1 {[%emt 0:00:00]} Rxe7 {[%emt 0:00:00]} 40. Rd3 {[%emt 0:00:00]} Re5 {[%emt 0:01:03]} 41. Kf2 {[%emt 1:57:51]} b5 {[%emt 1:59:49]} 42. b3 {[%emt 0:00:08]} h5 {[%emt 0:00:55]} 43. Kf3 {[%emt 0:00:00]} g5 {[%emt 0:00:00]} 44. e4 {[%emt 0:00:00]} Rc5 {[%emt 0:05:11]} 45. Ke3 {[%emt 0:00:08]} b4 {[%emt 0:00:43]} 46. Kd4 {[%emt 0:00:00]} Rc2 {[%emt 0:00:16]} 47. e5 {[%emt 0:00:31]} Rxh2 {[%emt 0:05:40]} 48. e6 {[%emt 0:00:00]} Re2 {[%emt 0:00:41]} 49. Kd5 {[%emt 0:00:00]} Kg8 {[%emt 0:00:31]} 50. Kd6 {[%emt 0:00:00]} Kf8 {[%emt 0:02:12]} 51. Kd7 {[%emt 0:00:00]} g4 {[%emt 0:00:00]} 52. Rd4 {[%emt 0:00:00]} g5 {[%emt 0:00:33]} 53. Rd5 {[%emt 0:00:00]} h4 {[%emt 0:00:00]} 54. Rf5+ {[%emt 0:00:00]} Kg7 {[%emt 0:00:02]} 55. Rxg5+ {[%emt 0:00:00]} Kf6 {[%emt 0:00:08]} 56. Rxg4 {[%emt 0:00:00]} Rxe6 {[%emt 0:03:26]} 57. Rd4 {[%emt 0:00:00]} hxg3 {[%emt 0:00:15]} 58. Rf4+ {[%emt 0:00:00]} Ke5 {[%emt 0:00:42]} 59. Rg4 {[%emt 0:00:00]} Rd6+ {[%emt 0:00:00]} 60. Kc7 {[%emt 0:00:00]} Rd3 {[%emt 0:00:00]} 61. Kb6 {[%emt 0:00:00]} Rxb3 {[%emt 0:01:09]} 62. Kxa5 {[%emt 0:00:00]} Rd3 {[%emt 0:00:13]} 63. Rxb4 {[%emt 0:00:00]} Rd5+ {[%emt 0:03:59]} 64. Kb6 {[%emt 0:00:00]} Rd4 {[%emt 0:00:02]} 65. Rb5+ {[%emt 0:00:10]} Kf4 {[%emt 0:00:04]} 66. a5 {[%emt 0:00:00]} g2 {[%emt 0:00:55]} 67. Rb1 {[%emt 0:00:00]} Kg3 {[%emt 0:00:47]} 68. Rg1 {[%emt 0:00:00]} Kf2 {[%emt 0:00:47]} 69. Rxg2+ {[%emt 0:00:00]} Kxg2 {[%emt 0:00:00]} 70. a6 {[%emt 0:00:00]} Ra4 {[%emt 0:00:00]} 71. a7 {[%emt 0:00:00]} Rxa7 {[%emt 0:00:00]} 72. Kxa7 {[%emt 0:00:00]} 1/2-1/2

[Event "Klatovy Open-B 2024"]
[Site "Klatovy"]
[Date "2024.06.29"]
[Round "1.5"]
[White "Zelenka, Tomas"]
[Black "Masek, Jan"]
[Result "0-1"]
[ECO "C24"]
[WhiteElo "1575"]
[BlackElo "1839"]
[Annotator "NA RC"]
[PlyCount "42"]
[EventDate "2024.06.21"]
[EventType "swiss"]
[EventCountry "CZE"]
[SourceTitle "playchess.com"]
[Source "ChessBase"]
[SourceQuality "1"]
[TimeControl "40/7200:0"]

1. e4 {[%emt 0:00:00]} e5 {[%emt 0:31:13]} 2. Bc4 {[%emt 0:00:00]} Nf6 {[%emt 0:00:04]} 3. d4 {[%emt 0:00:00]} Nxe4 {[%emt 0:02:00]} 4. dxe5 {[%emt 0:00:00]} Nc6 {[%emt 0:09:18]} 5. Bxf7+ {[%emt 0:01:03]} Kxf7 {[%emt 0:00:00]} 6. Qd5+ {[%emt 0:00:00]} Ke8 {[%emt 0:00:01]} 7. Qxe4 {[%emt 0:00:00]} Bb4+ {[%emt 0:02:09]} 8. c3 {[%emt 0:00:25]} Bc5 {[%emt 0:00:00]} 9. Nf3 {[%emt 0:01:57]} Qe7 {[%emt 0:00:00]} 10. O-O {[%emt 0:00:31]} Qe6 {[%emt 0:03:07]} 11. Ng5 {[%emt 0:04:02]} Qxe5 {[%emt 0:00:00]} 12. Qxe5+ {[%emt 0:00:09]} Nxe5 {[%emt 0:00:00]} 13. Re1 {[%emt 0:00:13]} d6 {[%emt 0:00:00]} 14. Bf4 {[%emt 0:00:28]} Rf8 {[%emt 0:01:16]} 15. Bg3 {[%emt 0:01:45]} Kd8 {[%emt 0:08:41]} 16. Ne4 {[%emt 0:05:30]} Bb6 {[%emt 0:05:32]} 17. Rd1 {[%emt 0:03:22]} Bg4 {[%emt 0:00:12]} 18. Rf1 {[%emt 0:09:21]} Nd3 {[%emt 0:02:38]} 19. Ng5 {[%emt 0:04:06]} Rf5 {[%emt 0:05:22]} 20. Ne6+ {[%emt 0:01:59]} Kd7 {[%emt 0:00:00]} 21. Nxg7 {[%emt 0:06:33]} Rg5 {[%emt 0:00:08]} 0-1

[Event "Klatovy Open-B 2024"]
[Site "Klatovy"]
[Date "2024.06.29"]
[Round "1.8"]
[White "Chmelik, Ladislav"]
[Black "Kvaca, Frantisek"]
[Result "1-0"]
[ECO "B32"]
[WhiteElo "1795"]
[BlackElo "1558"]
[Annotator "NA RC"]
[PlyCount "39"]
[EventDate "2024.06.21"]
[EventType "swiss"]
[EventCountry "CZE"]
[SourceTitle "playchess.com"]
[Source "ChessBase"]
[SourceQuality "1"]
[TimeControl "40/7200:0"]

1. e4 {[%emt 0:00:00]} c5 {[%emt 0:00:00]} 2. Nf3 {[%emt 0:00:00]} Nc6 {[%emt 0:00:00]} 3. d4 {[%emt 0:00:00]} cxd4 {[%emt 0:00:00]} 4. Nxd4 {[%emt 0:07:39]} e5 {[%emt 0:00:00]} 5. Nb5 {[%emt 0:01:45]} a6 {[%emt 0:00:09]} 6. Nd6+ {[%emt 0:00:00]} Bxd6 {[%emt 0:00:00]} 7. Qxd6 {[%emt 0:00:00]} Qe7 {[%emt 0:00:00]} 8. Qxe7+ {[%emt 0:02:30]} Ngxe7 {[%emt 0:00:00]} 9. c3 {[%emt 0:01:07]} d5 {[%emt 0:00:00]} 10. exd5 {[%emt 0:02:44]} Nxd5 {[%emt 0:00:00]} 11. Bc4 {[%emt 0:00:00]} Be6 {[%emt 0:00:00]} 12. O-O {[%emt 0:11:13]} O-O-O {[%emt 0:00:00]} 13. Na3 {[%emt 0:00:36]} f6 {[%emt 0:00:00]} 14. Re1 {[%emt 0:02:41]} Na5 {[%emt 0:00:50]} 15. Be2 {[%emt 0:04:33]} Bf7 {[%emt 0:00:19]} 16. c4 {[%emt 0:01:51]} Nb6 {[%emt 0:00:55]} 17. Be3 {[%emt 0:01:03]} Nd7 {[%emt 0:00:19]} 18. Bg4 {[%emt 0:02:46]} Kb8 {[%emt 0:00:14]} 19. Red1 {[%emt 0:00:33]} Be8 {[%emt 0:00:20]} 20. Bb6 {[%emt 0:00:25]} 1-0

[Event "Klatovy Open-B 2024"]
[Site "Klatovy"]
[Date "2024.06.29"]
[Round "1.9"]
[White "Souralova, Jana"]
[Black "Beran, Jakub"]
[Result "1/2-1/2"]
[ECO "B72"]
[WhiteElo "1557"]
[BlackElo "1791"]
[Annotator "NA RC"]
[PlyCount "85"]
[EventDate "2024.06.21"]
[EventType "swiss"]
[EventCountry "CZE"]
[SourceTitle "playchess.com"]
[Source "ChessBase"]
[SourceQuality "1"]
[TimeControl "40/7200:0"]

1. e4 {[%emt 0:00:00]} c5 {[%emt 0:00:00]} 2. Nf3 {[%emt 0:00:00]} Nc6 {[%emt 0:00:00]} 3. d4 {[%emt 0:00:00]} cxd4 {[%emt 0:00:00]} 4. Nxd4 {[%emt 0:00:00]} d6 {[%emt 0:00:00]} 5. Nc3 {[%emt 0:00:00]} g6 {[%emt 0:00:00]} 6. Be3 {[%emt 0:00:46]} Bg7 {[%emt 0:00:00]} 7. Bc4 {[%emt 0:01:18]} Nf6 {[%emt 0:00:00]} 8. Qd2 {[%emt 0:16:07]} O-O {[%emt 0:00:42]} 9. O-O {[%emt 0:03:57]} Bd7 {[%emt 0:03:15]} 10. h3 {[%emt 0:01:24]} a6 {[%emt 0:00:44]} 11. a3 {[%emt 0:07:53]} Rc8 {[%emt 0:00:37]} 12. Ba2 {[%emt 0:04:33]} Qc7 {[%emt 0:01:08]} 13. Rac1 {[%emt 0:02:14]} Rcd8 {[%emt 0:02:32]} 14. Rfd1 {[%emt 0:01:57]} Rfe8 {[%emt 0:02:15]} 15. Qe2 {[%emt 0:10:12]} b5 {[%emt 0:02:04]} 16. Nf3 {[%emt 0:09:48]} Rf8 {[%emt 0:10:57]} 17. Qd2 {[%emt 0:25:16]} Qb7 {[%emt 0:04:44]} 18. Bh6 {[%emt 0:04:27]} a5 {[%emt 0:03:02]} 19. Bxg7 {[%emt 0:00:20]} Kxg7 {[%emt 0:00:16]} 20. Re1 {[%emt 0:00:00]} Ne5 {[%emt 0:02:23]} 21. Nxe5 {[%emt 0:02:37]} dxe5 {[%emt 0:00:19]} 22. Qg5 {[%emt 0:00:30]} Qc7 {[%emt 0:01:27]} 23. Nd5 {[%emt 0:00:04]} Nxd5 {[%emt 0:00:50]} 24. Bxd5 {[%emt 0:00:18]} e6 {[%emt 0:00:40]} 25. Bb3 {[%emt 0:00:37]} Bc6 {[%emt 0:01:47]} 26. Qe3 {[%emt 0:00:19]} Rd4 {[%emt 0:01:01]} 27. Rcd1 {[%emt 0:08:55]} Rfd8 {[%emt 0:04:43]} 28. Rxd4 {[%emt 0:04:00]} Rxd4 {[%emt 0:00:00]} 29. f3 {[%emt 0:03:06]} Qd6 {[%emt 0:00:36]} 30. c3 {[%emt 0:01:55]} Rd2 {[%emt 0:00:26]} 31. Re2 {[%emt 0:00:00]} Rxe2 {[%emt 0:00:27]} 32. Qxe2 {[%emt 0:00:00]} Qc5+ {[%emt 0:04:19]} 33. Qf2 {[%emt 0:00:00]} Qxf2+ {[%emt 0:00:44]} 34. Kxf2 {[%emt 0:00:00]} Kf6 {[%emt 0:00:00]} 35. Bc2 {[%emt 0:00:23]} Kg5 {[%emt 0:00:51]} 36. b4 {[%emt 0:00:28]} axb4 {[%emt 0:00:33]} 37. axb4 {[%emt 0:00:00]} f5 {[%emt 0:00:00]} 38. Ke3 {[%emt 0:00:57]} Kf6 {[%emt 0:03:07]} 39. Bd3 {[%emt 0:00:00]} Ke7 {[%emt 0:04:13]} 40. c4 {[%emt 0:00:23]} bxc4 {[%emt 0:03:56]} 41. Bxc4 {[%emt 1:59:35]} Kd6 {[%emt 2:02:01]} 42. Kd3 {[%emt 0:00:45]} Bb7 {[%emt 0:03:57]} 43. Bb3 {[%emt 0:04:56]} 1/2-1/2

[Event "Klatovy Open-B 2024"]
[Site "Klatovy"]
[Date "2024.06.29"]
[Round "1.10"]
[White "Marko, Ondrej"]
[Black "Bubela, Alexander Georg"]
[Result "1-0"]
[ECO "D37"]
[WhiteElo "1786"]
[BlackElo "1549"]
[Annotator "NA RC"]
[PlyCount "55"]
[EventDate "2024.06.21"]
[EventType "swiss"]
[EventCountry "CZE"]
[SourceTitle "playchess.com"]
[Source "ChessBase"]
[SourceQuality "1"]
[TimeControl "40/7200:0"]

1. d4 {[%emt 0:04:24]} Nf6 {[%emt 0:00:00]} 2. Nf3 {[%emt 0:00:00]} e6 {[%emt 0:00:00]} 3. c4 {[%emt 0:01:38]} d5 {[%emt 0:00:00]} 4. e3 {[%emt 0:00:49]} Be7 {[%emt 0:00:00]} 5. Nc3 {[%emt 0:00:00]} O-O {[%emt 0:00:00]} 6. Bd3 {[%emt 1:53:09]} Nbd7 {[%emt 0:00:00]} 7. b3 {[%emt 0:00:00]} Bb4 {[%emt 0:02:46]} 8. Bd2 {[%emt 0:00:00]} Qe7 {[%emt 0:00:34]} 9. O-O {[%emt 0:00:00]} Re8 {[%emt 0:00:14]} 10. Nb5 {[%emt 0:00:00]} Bxd2 {[%emt 0:03:24]} 11. Qxd2 {[%emt 0:00:00]} Nf8 {[%emt 0:00:12]} 12. Rac1 {[%emt 0:00:00]} c6 {[%emt 0:00:29]} 13. Nc3 {[%emt 0:00:00]} Ng6 {[%emt 0:00:05]} 14. Bxg6 {[%emt 0:00:00]} hxg6 {[%emt 0:00:00]} 15. c5 {[%emt 0:00:00]} a5 {[%emt 0:00:57]} 16. Na4 {[%emt 0:00:00]} Ne4 {[%emt 0:02:56]} 17. Qc2 {[%emt 0:00:00]} Bd7 {[%emt 0:14:17]} 18. Nb6 {[%emt 0:00:00]} Ra6 {[%emt 0:00:51]} 19. Ne5 {[%emt 0:00:00]} Nf6 {[%emt 0:00:05]} 20. Qe2 {[%emt 0:00:00]} Rd8 {[%emt 0:01:22]} 21. Rc2 {[%emt 0:00:00]} Be8 {[%emt 0:00:10]} 22. g4 {[%emt 0:00:00]} Qc7 {[%emt 0:01:28]} 23. Na4 {[%emt 0:00:00]} Nd7 {[%emt 0:00:30]} 24. f4 {[%emt 0:00:00]} f6 {[%emt 0:01:41]} 25. Nf3 {[%emt 0:00:00]} e5 {[%emt 0:04:59]} 26. fxe5 {[%emt 0:00:00]} fxe5 {[%emt 0:00:00]} 27. Ng5 {[%emt 0:00:00]} Nf8 {[%emt 0:02:59]} 28. Rxf8+ {[%emt 0:00:00]} 1-0

[Event "Klatovy Open-B 2024"]
[Site "Klatovy"]
[Date "2024.06.29"]
[Round "1.11"]
[White "Babicky, Jan"]
[Black "Spackova, Martina"]
[Result "1/2-1/2"]
[ECO "C29"]
[WhiteElo "1542"]
[BlackElo "1777"]
[Annotator "NA RC"]
[PlyCount "69"]
[EventDate "2024.06.21"]
[EventType "swiss"]
[EventCountry "CZE"]
[SourceTitle "playchess.com"]
[Source "ChessBase"]
[SourceQuality "1"]
[TimeControl "40/7200:0"]

1. e4 {[%emt 0:00:00]} e5 {[%emt 0:00:00]} 2. Nc3 {[%emt 0:00:00]} Nf6 {[%emt 0:00:00]} 3. f4 {[%emt 0:00:00]} d5 {[%emt 0:00:00]} 4. fxe5 {[%emt 0:00:00]} Nxe4 {[%emt 0:00:00]} 5. Qf3 {[%emt 0:00:00]} Nxc3 {[%emt 0:01:17]} 6. dxc3 {[%emt 0:00:00]} Qh4+ {[%emt 0:01:44]} 7. g3 {[%emt 0:00:00]} Qe4+ {[%emt 0:00:09]} 8. Qxe4 {[%emt 0:01:35]} dxe4 {[%emt 0:00:00]} 9. Bf4 {[%emt 0:02:05]} h6 {[%emt 0:01:28]} 10. Bc4 {[%emt 0:03:21]} g5 {[%emt 0:02:30]} 11. Be3 {[%emt 0:02:10]} Bf5 {[%emt 0:04:04]} 12. O-O-O {[%emt 0:01:48]} Bg7 {[%emt 0:04:27]} 13. Bd4 {[%emt 0:05:53]} O-O {[%emt 0:02:26]} 14. Ne2 {[%emt 0:00:45]} Nc6 {[%emt 0:03:00]} 15. Bd5 {[%emt 0:09:31]} Rfe8 {[%emt 0:07:35]} 16. Rhf1 {[%emt 0:04:05]} Bg6 {[%emt 0:03:03]} 17. e6 {[%emt 0:04:33]} fxe6 {[%emt 0:01:23]} 18. Bxc6 {[%emt 0:03:29]} bxc6 {[%emt 0:04:16]} 19. Bxg7 {[%emt 0:00:00]} Kxg7 {[%emt 0:00:00]} 20. Rd7+ {[%emt 0:00:00]} Kg8 {[%emt 0:00:35]} 21. Rf6 {[%emt 0:00:48]} Bh5 {[%emt 0:02:01]} 22. Nd4 {[%emt 0:00:30]} Rf8 {[%emt 0:02:04]} 23. Rxh6 {[%emt 0:01:50]} e3 {[%emt 0:09:24]} 24. b3 {[%emt 0:00:06]} Rf1+ {[%emt 0:15:08]} 25. Kb2 {[%emt 0:00:00]} Bf7 {[%emt 0:00:00]} 26. Rxc7 {[%emt 0:06:54]} e5 {[%emt 0:05:54]} 27. Ne2 {[%emt 0:01:24]} Re1 {[%emt 0:06:46]} 28. Nc1 {[%emt 0:00:00]} Rxc1 {[%emt 0:04:49]} 29. Kxc1 {[%emt 0:00:04]} Rd8 {[%emt 0:00:00]} 30. Rf6 {[%emt 0:06:15]} Bh5 {[%emt 0:03:54]} 31. Rf5 {[%emt 0:02:18]} e2 {[%emt 0:06:34]} 32. Rxg5+ {[%emt 0:00:37]} Kf8 {[%emt 0:00:12]} 33. Rf5+ {[%emt 0:00:23]} Kg8 {[%emt 0:00:11]} 34. Rg5+ {[%emt 0:01:35]} Kf8 {[%emt 0:00:00]} 35. Kb2 {[%emt 0:58:01]} 1/2-1/2

[Event "Klatovy Open-B 2024"]
[Site "Klatovy"]
[Date "2024.06.29"]
[Round "1.12"]
[White "Zbanek, Jan"]
[Black "Mojzisova, Barbora"]
[Result "0-1"]
[ECO "C25"]
[WhiteElo "1775"]
[BlackElo "1535"]
[Annotator "NA RC"]
[PlyCount "28"]
[EventDate "2024.06.21"]
[EventType "swiss"]
[EventCountry "CZE"]
[SourceTitle "playchess.com"]
[Source "ChessBase"]
[SourceQuality "1"]
[TimeControl "40/7200:0"]

1. e4 {[%emt 0:00:00]} e5 {[%emt 0:00:00]} 2. Nc3 {[%emt 0:00:00]} Nc6 {[%emt 0:00:00]} 3. Bc4 {[%emt 0:00:00]} Bc5 {[%emt 0:00:00]} 4. Qg4 {[%emt 0:00:00]} Kf8 {[%emt 0:00:37]} 5. Nge2 {[%emt 0:04:59]} d5 {[%emt 0:04:35]} 6. Qg3 {[%emt 0:02:42]} dxc4 {[%emt 0:01:32]} 7. O-O {[%emt 0:00:59]} Nf6 {[%emt 0:02:06]} 8. Kh1 {[%emt 0:02:21]} Nh5 {[%emt 0:05:24]} 9. Qf3 {[%emt 0:00:29]} Qh4 {[%emt 0:04:09]} 10. h3 {[%emt 0:05:56]} g5 {[%emt 0:07:05]} 11. g4 {[%emt 0:02:45]} Nf4 {[%emt 0:01:37]} 12. Nxf4 {[%emt 0:01:22]} gxf4 {[%emt 0:00:59]} 13. Ne2 {[%emt 0:02:28]} h5 {[%emt 0:01:14]} 14. gxh5 {[%emt 0:01:00]} Bxh3 {[%emt 0:01:00]} 0-1